[Event "European Rapid Championship 2021"]
[Site "Katowice"]
[Date "2021.12.18"]
[Round "5.16"]
[White "Sanz Wawer, Daniel"]
[Black "Schneider, Ilja"]
[Result "0-1"]
[ECO "C42"]
[WhiteElo "2371"]
[BlackElo "2490"]
[Annotator "ChessBase"]
[PlyCount "72"]
[EventDate "2021.12.18"]
[EventType "swiss"]
[EventCountry "POL"]
[SourceTitle "playchess.com"]
[Source "ChessBase"]
[SourceQuality "1"]
[TimeControl "900+10"]

1. e4 {[%emt 0:00:02]} e5 {[%emt 0:00:07]} 2. Nf3 {[%emt 0:00:02]} Nf6 {
[%emt 0:00:02]} 3. Nxe5 {[%emt 0:00:06]} d6 {[%emt 0:00:01]} 4. Nf3 {[%emt 0:
00:02]} Nxe4 {[%emt 0:00:01]} 5. Nc3 {[%emt 0:00:01]} Nxc3 {[%emt 0:00:01]} 6.
dxc3 {[%emt 0:00:01]} Be7 {[%emt 0:00:01]} 7. Bf4 {[%emt 0:00:04]} O-O {
[%emt 0:00:02]} 8. Qd2 {[%emt 0:00:02]} Nd7 {[%emt 0:00:13]} 9. O-O-O {[%emt 0:
00:03]} Nc5 {[%emt 0:00:19]} 10. Kb1 {[%emt 0:00:06]} Re8 {[%emt 0:01:05]} 11.
Bc4 {[%emt 0:00:18]} Be6 {[%emt 0:03:13]} 12. Bxe6 {[%emt 0:00:14]} Nxe6 {
[%emt 0:00:04]} 13. Bg3 {[%emt 0:00:02]} Qd7 {[%emt 0:00:43]} 14. Rhe1 {
[%emt 0:00:02]} Bf6 {[%emt 0:00:24]} 15. Nd4 {[%emt 0:05:13]} Nxd4 {[%emt 0:01:
15]} 16. cxd4 {[%emt 0:00:01]} h5 {[%emt 0:00:02]} 17. Qf4 {[%emt 0:01:32]}
Rxe1 {[%emt 0:00:29]} 18. Rxe1 {[%emt 0:00:01]} Re8 {[%emt 0:00:01]} 19. Rxe8+
{[%emt 0:01:34]} Qxe8 {[%emt 0:00:01]} 20. a3 {[%emt 0:00:12]} Qe1+ {[%emt 0:
00:25]} 21. Ka2 {[%emt 0:00:00]} Qe6+ {[%emt 0:00:01]} 22. Kb1 {[%emt 0:00:27]}
g5 {[%emt 0:00:19]} 23. Qf3 {[%emt 0:01:31]} h4 {[%emt 0:00:01]} 24. d5 {
[%emt 0:00:03]} Qe7 {[%emt 0:03:59]} 25. Bxh4 {[%emt 0:00:02]} Qe5 {[%emt 0:01:
16]} 26. Qb3 {[%emt 0:00:22]} gxh4 {[%emt 0:00:01]} 27. Qxb7 {[%emt 0:00:04]}
Qxh2 {[%emt 0:00:53]} 28. Qc8+ {[%emt 0:00:53]} Kg7 {[%emt 0:00:00]} 29. Qg4+ {
[%emt 0:00:02]} Kh6 {[%emt 0:00:01]} 30. c3 {[%emt 0:01:50]} Qg1+ {[%emt 0:00:
06]} 31. Ka2 {[%emt 0:00:03]} Qxf2 {[%emt 0:00:01]} 32. Kb3 {[%emt 0:00:43]}
Qb6+ {[%emt 0:00:31]} 33. Ka2 {[%emt 0:00:04]} Qf2 {[%emt 0:00:20]} 34. Kb3 {
[%emt 0:00:01]} Bg5 {[%emt 0:00:33]} 35. Qe4 {[%emt 0:03:33]} Bc1 {[%emt 0:00:
19]} 36. Qb1 {[%emt 0:00:07]} Qxb2+ 0-1

[Event "European Rapid Championship 2021"]
[Site "Katowice"]
[Date "2021.12.18"]
[Round "5.16"]
[White "Sharankov, Grigory"]
[Black "Vidruska, Renate"]
[Result "1-0"]
[ECO "A05"]
[WhiteElo "2220"]
[BlackElo "1993"]
[Annotator "NA"]
[PlyCount "91"]
[EventDate "2021.12.18"]
[EventType "swiss"]
[EventCountry "POL"]
[SourceTitle "playchess.com"]
[Source "ChessBase"]
[SourceQuality "1"]
[TimeControl "900+10"]

1. Nf3 {[%emt 0:00:03]} Nf6 {[%emt 0:00:05]} 2. c4 {[%emt 0:00:02]} e6 {
[%emt 0:00:02]} 3. e3 {[%emt 0:00:19]} d5 {[%emt 0:00:03]} 4. Qc2 {[%emt 0:00:
11]} Be7 {[%emt 0:00:43]} 5. b3 {[%emt 0:00:02]} O-O {[%emt 0:00:11]} 6. Bb2 {
[%emt 0:00:02]} c5 {[%emt 0:00:19]} 7. d3 {[%emt 0:00:59]} Nc6 {[%emt 0:00:41]}
8. a3 {[%emt 0:00:02]} Bd7 {[%emt 0:01:56]} 9. Nbd2 {[%emt 0:00:04]} dxc4 {
[%emt 0:00:39]} 10. dxc4 {[%emt 0:00:24]} Qc7 {[%emt 0:01:29]} 11. Bd3 {
[%emt 0:00:14]} h6 {[%emt 0:02:47]} 12. Rg1 {[%emt 0:00:45]} Ng4 {[%emt 0:00:
14]} 13. h3 {[%emt 0:00:46]} Nge5 {[%emt 0:00:07]} 14. Bh7+ {[%emt 0:01:23]}
Kh8 {[%emt 0:00:01]} 15. Be4 {[%emt 0:00:01]} f5 {[%emt 0:02:18]} 16. Nxe5 {
[%emt 0:00:12]} Nxe5 {[%emt 0:00:02]} 17. Bxb7 {[%emt 0:00:23]} Rab8 {[%emt 0:
00:38]} 18. Bf3 {[%emt 0:00:02]} Bf6 {[%emt 0:00:02]} 19. Be2 {[%emt 0:02:05]}
Bc6 {[%emt 0:00:22]} 20. Rd1 {[%emt 0:02:17]} a5 {[%emt 0:00:09]} 21. f4 {
[%emt 0:00:53]} Nd7 {[%emt 0:00:20]} 22. Bxf6 {[%emt 0:00:04]} Nxf6 {[%emt 0:
00:02]} 23. g4 {[%emt 0:00:05]} a4 {[%emt 0:00:48]} 24. bxa4 {[%emt 0:00:03]}
Qa5 {[%emt 0:01:11]} 25. Rc1 {[%emt 0:01:26]} Bxa4 {[%emt 0:00:07]} 26. Qc3 {
[%emt 0:00:01]} Qxc3 {[%emt 0:00:33]} 27. Rxc3 {[%emt 0:00:02]} Rb2 {[%emt 0:
01:02]} 28. Rd3 {[%emt 0:00:41]} e5 {[%emt 0:01:26]} 29. fxe5 {[%emt 0:00:16]}
Ne4 {[%emt 0:00:01]} 30. gxf5 {[%emt 0:00:45]} Nxd2 {[%emt 0:00:07]} 31. Rxd2 {
[%emt 0:00:01]} Rb1+ {[%emt 0:00:01]} 32. Bd1 {[%emt 0:00:21]} Rxf5 {[%emt 0:
00:01]} 33. Ke2 {[%emt 0:00:10]} Rxe5 {[%emt 0:01:21]} 34. Rd8+ {[%emt 0:00:55]
} Kh7 {[%emt 0:00:06]} 35. Rd5 {[%emt 0:01:43]} Bxd1+ {[%emt 0:00:39]} 36.
Rgxd1 {[%emt 0:00:02]} Rb2+ {[%emt 0:00:02]} 37. R1d2 {[%emt 0:00:18]} Rxd5 {
[%emt 0:00:26]} 38. cxd5 {[%emt 0:00:11]} Rb7 {[%emt 0:00:03]} 39. Kd3 {
[%emt 0:01:14]} Ra7 {[%emt 0:00:19]} 40. d6 {[%emt 0:00:12]} Kg8 {[%emt 0:00:
12]} 41. Kc4 {[%emt 0:00:01]} Rd7 {[%emt 0:00:00]} 42. Kxc5 Kf7 43. Kd5 {
[%emt 0:00:03]} Ke8 {[%emt 0:00:05]} 44. Ke6 {[%emt 0:00:02]} Ra7 {[%emt 0:00:
01]} 45. Rb2 {[%emt 0:00:05]} Kd8 {[%emt 0:00:02]} 46. Rb8# {[%emt 0:00:01]}
1-0

[Event "European Rapid Championship 2021"]
[Site "Katowice"]
[Date "2021.12.18"]
[Round "5.17"]
[White "Piesik, Piotr"]
[Black "Pacuszka, Tomasz"]
[Result "1-0"]
[ECO "A06"]
[WhiteElo "2342"]
[BlackElo "2193"]
[Annotator "NA"]
[PlyCount "89"]
[EventDate "2021.12.18"]
[EventType "swiss"]
[EventCountry "POL"]
[SourceTitle "playchess.com"]
[Source "ChessBase"]
[SourceQuality "1"]
[TimeControl "900+10"]

1. Nf3 {[%emt 0:00:01]} d5 {[%emt 0:00:01]} 2. g3 {[%emt 0:00:02]} Nf6 {
[%emt 0:00:04]} 3. Bg2 {[%emt 0:00:01]} c6 {[%emt 0:00:02]} 4. O-O {[%emt 0:00:
02]} Bf5 {[%emt 0:00:07]} 5. d3 {[%emt 0:00:01]} e6 {[%emt 0:00:02]} 6. Nbd2 {
[%emt 0:00:02]} Be7 {[%emt 0:00:38]} 7. Qe1 {[%emt 0:00:01]} h6 {[%emt 0:00:23]
} 8. e4 {[%emt 0:00:02]} Bh7 {[%emt 0:00:03]} 9. Qe2 {[%emt 0:00:01]} Na6 {
[%emt 0:01:58]} 10. Ne1 {[%emt 0:00:52]} Qb6 {[%emt 0:01:54]} 11. Kh1 {[%emt 0:
00:16]} Nc5 {[%emt 0:01:39]} 12. e5 {[%emt 0:01:23]} Nfd7 {[%emt 0:00:08]} 13.
f4 {[%emt 0:00:02]} O-O-O {[%emt 0:00:35]} 14. Nb3 {[%emt 0:00:32]} Qa6 {
[%emt 0:00:14]} 15. Nd4 {[%emt 0:00:16]} Rde8 {[%emt 0:00:41]} 16. b4 {[%emt 0:
01:30]} Na4 {[%emt 0:00:04]} 17. Bd2 {[%emt 0:00:02]} Qb6 {[%emt 0:02:30]} 18.
Nef3 {[%emt 0:00:37]} a6 {[%emt 0:00:17]} 19. Rab1 {[%emt 0:00:38]} Qc7 {
[%emt 0:00:03]} 20. Rbc1 {[%emt 0:00:29]} Kb8 {[%emt 0:00:12]} 21. c4 {[%emt 0:
00:05]} dxc4 {[%emt 0:00:45]} 22. dxc4 {[%emt 0:00:08]} c5 {[%emt 0:00:27]} 23.
Nc2 {[%emt 0:00:48]} Ndb6 {[%emt 0:00:25]} 24. b5 {[%emt 0:00:51]} axb5 {
[%emt 0:00:23]} 25. cxb5 {[%emt 0:00:01]} Nb2 {[%emt 0:00:09]} 26. Nfe1 {
[%emt 0:00:12]} c4 {[%emt 0:00:26]} 27. Ba5 {[%emt 0:03:40]} Nd3 {[%emt 0:00:
44]} 28. Rd1 {[%emt 0:00:16]} Bc5 {[%emt 0:00:22]} 29. Ne3 {[%emt 0:00:20]} Rd8
{[%emt 0:01:19]} 30. N1c2 {[%emt 0:01:33]} Nb2 {[%emt 0:00:17]} 31. Rxd8+ {
[%emt 0:00:50]} Rxd8 {[%emt 0:00:02]} 32. f5 {[%emt 0:00:59]} Qxe5 {[%emt 0:00:
26]} 33. Qf3 {[%emt 0:00:01]} Qc7 {[%emt 0:00:06]} 34. g4 {[%emt 0:00:55]} h5 {
[%emt 0:00:40]} 35. g5 {[%emt 0:00:10]} exf5 {[%emt 0:00:13]} 36. Nd5 {[%emt 0:
00:27]} Rxd5 {[%emt 0:00:34]} 37. Bxb6 {[%emt 0:00:02]} Qxb6 {[%emt 0:00:28]}
38. Qxd5 {[%emt 0:00:01]} f4 {[%emt 0:00:01]} 39. Rxf4 {[%emt 0:00:41]} Nd3 {
[%emt 0:00:32]} 40. Rxc4 {[%emt 0:00:56]} Bd6 {[%emt 0:01:09]} 41. Rd4 {
[%emt 0:00:39]} Nf2+ {[%emt 0:00:27]} 42. Kg1 {[%emt 0:00:01]} Bc5 {[%emt 0:00:
03]} 43. Qe5+ {[%emt 0:00:22]} Qc7 {[%emt 0:00:01]} 44. Rd8+ {[%emt 0:00:06]}
Ka7 {[%emt 0:00:02]} 45. Qxc7 {[%emt 0:00:01]} 1-0

[Event "European Rapid Championship 2021"]
[Site "Katowice"]
[Date "2021.12.18"]
[Round "5.17"]
[White "Karolczuk, Iwo"]
[Black "Golubovskis, Maksims"]
[Result "1-0"]
[ECO "A46"]
[WhiteElo "2007"]
[BlackElo "2210"]
[Annotator "NA"]
[PlyCount "135"]
[EventDate "2021.12.18"]
[EventType "swiss"]
[EventCountry "POL"]
[SourceTitle "playchess.com"]
[Source "ChessBase"]
[SourceQuality "1"]
[TimeControl "900+10"]

1. d4 {[%emt 0:00:03]} Nf6 {[%emt 0:00:01]} 2. Nf3 {[%emt 0:00:03]} e6 {
[%emt 0:00:09]} 3. e3 {[%emt 0:00:02]} b6 {[%emt 0:00:06]} 4. Bd3 {[%emt 0:00:
02]} Bb7 {[%emt 0:00:02]} 5. O-O {[%emt 0:00:02]} Be7 {[%emt 0:00:01]} 6. c4 {
[%emt 0:00:03]} O-O {[%emt 0:00:04]} 7. Nc3 {[%emt 0:00:02]} d5 {[%emt 0:00:18]
} 8. cxd5 {[%emt 0:00:03]} exd5 {[%emt 0:00:17]} 9. b3 {[%emt 0:00:04]} Ne4 {
[%emt 0:00:17]} 10. Bb2 {[%emt 0:00:03]} Nd7 {[%emt 0:00:01]} 11. Rc1 {[%emt 0:
00:35]} f5 {[%emt 0:02:05]} 12. Ne5 {[%emt 0:01:25]} Nxe5 {[%emt 0:00:22]} 13.
dxe5 {[%emt 0:00:03]} c5 {[%emt 0:00:59]} 14. f4 {[%emt 0:00:30]} Rc8 {[%emt 0:
03:42]} 15. Nxe4 {[%emt 0:00:47]} dxe4 {[%emt 0:01:24]} 16. Bc4+ {[%emt 0:00:
08]} Kh8 {[%emt 0:00:03]} 17. Be6 {[%emt 0:02:08]} Rb8 {[%emt 0:00:23]} 18.
Qxd8 {[%emt 0:01:17]} Rbxd8 {[%emt 0:00:01]} 19. Rfd1 {[%emt 0:00:05]} Rd3 {
[%emt 0:01:05]} 20. Bc4 {[%emt 0:01:07]} Rfd8 {[%emt 0:00:52]} 21. Bxd3 {
[%emt 0:00:34]} exd3 {[%emt 0:00:01]} 22. Rd2 {[%emt 0:00:57]} Kg8 {[%emt 0:00:
49]} 23. Kf2 {[%emt 0:01:27]} Kf7 {[%emt 0:00:20]} 24. Bc3 {[%emt 0:01:36]} Ke6
{[%emt 0:00:47]} 25. Rb1 {[%emt 0:00:46]} g5 {[%emt 0:00:49]} 26. g3 {[%emt 0:
00:42]} h5 {[%emt 0:01:00]} 27. Rg1 {[%emt 0:00:40]} g4 {[%emt 0:00:33]} 28.
Ke1 {[%emt 0:00:20]} Bf3 {[%emt 0:00:03]} 29. Rf2 {[%emt 0:00:08]} Be4 {
[%emt 0:00:24]} 30. Kd2 {[%emt 0:00:06]} Rc8 {[%emt 0:01:00]} 31. Rc1 {[%emt 0:
01:05]} Kd5 {[%emt 0:00:51]} 32. Bb2 {[%emt 0:01:48]} b5 {[%emt 0:00:21]} 33.
Bc3 {[%emt 0:00:05]} c4 {[%emt 0:00:17]} 34. bxc4+ {[%emt 0:01:37]} Rxc4 {
[%emt 0:00:01]} 35. Rb1 {[%emt 0:00:24]} b4 {[%emt 0:00:08]} 36. Bd4 {[%emt 0:
00:01]} Rc2+ {[%emt 0:00:42]} 37. Ke1 {[%emt 0:00:00]} d2+ {[%emt 0:00:13]} 38.
Kd1 {[%emt 0:00:07]} Rxa2 {[%emt 0:00:02]} 39. Rb2 {[%emt 0:00:17]} Bf3+ {
[%emt 0:00:48]} 40. Kxd2 {[%emt 0:00:02]} Rxb2+ {[%emt 0:00:01]} 41. Bxb2 {
[%emt 0:00:01]} a5 {[%emt 0:00:13]} 42. Kc1 {[%emt 0:00:13]} a4 {[%emt 0:00:09]
} 43. Rd2+ {[%emt 0:00:02]} Ke6 {[%emt 0:00:14]} 44. Rc2 {[%emt 0:00:33]} a3 {
[%emt 0:00:07]} 45. Bd4 {[%emt 0:00:09]} b3 {[%emt 0:00:04]} 46. Rc7 {[%emt 0:
00:04]} b2+ {[%emt 0:00:18]} 47. Bxb2 {[%emt 0:00:05]} axb2+ {[%emt 0:00:00]}
48. Kxb2 {[%emt 0:00:01]} h4 {[%emt 0:00:15]} 49. Kc3 {[%emt 0:00:20]} h3 {
[%emt 0:00:13]} 50. Kd3 {[%emt 0:00:32]} Bd8 {[%emt 0:00:08]} 51. Rc8 {[%emt 0:
00:13]} Ba5 {[%emt 0:00:11]} 52. Re8+ {[%emt 0:00:05]} Kf7 {[%emt 0:00:07]} 53.
Rh8 {[%emt 0:00:10]} Be1 {[%emt 0:00:03]} 54. Rh6 {[%emt 0:00:10]} Ke7 {
[%emt 0:00:08]} 55. Kd4 {[%emt 0:00:04]} Bf2 {[%emt 0:00:16]} 56. Rh7+ {
[%emt 0:00:18]} Ke6 {[%emt 0:00:05]} 57. Rh6+ Ke7 58. Rh7+ {[%emt 0:00:11]} Kd8
{[%emt 0:00:01]} 59. e6 {[%emt 0:00:08]} Be1 {[%emt 0:00:54]} 60. Ke5 {[%emt 0:
00:06]} Be4 {[%emt 0:00:07]} 61. Kf6 {[%emt 0:00:11]} Bc3+ {[%emt 0:00:12]} 62.
Kf7 {[%emt 0:00:03]} Bd5 {[%emt 0:00:00]} 63. Rh5 {[%emt 0:00:10]} Ba2 {
[%emt 0:00:21]} 64. Rxf5 {[%emt 0:00:04]} Bb4 {[%emt 0:00:10]} 65. Rb5 {
[%emt 0:00:22]} Bd6 {[%emt 0:00:06]} 66. Ra5 {[%emt 0:00:23]} Bc4 {[%emt 0:00:
07]} 67. e4 {[%emt 0:00:10]} Kc7 {[%emt 0:00:18]} 68. e5 {[%emt 0:00:07]} 1-0

[Event "European Rapid Championship 2021"]
[Site "Katowice"]
[Date "2021.12.18"]
[Round "5.18"]
[White "Papasimakopoulos, Alexandros"]
[Black "Karpus, Michal"]
[Result "0-1"]
[ECO "E35"]
[WhiteElo "2274"]
[BlackElo "2185"]
[Annotator "NA"]
[PlyCount "108"]
[EventDate "2021.12.18"]
[EventType "swiss"]
[EventCountry "POL"]
[SourceTitle "playchess.com"]
[Source "ChessBase"]
[SourceQuality "1"]
[TimeControl "900+10"]

1. d4 {[%emt 0:00:03]} Nf6 {[%emt 0:00:01]} 2. c4 {[%emt 0:00:01]} e6 {[%emt 0:
00:02]} 3. Nc3 {[%emt 0:00:02]} Bb4 {[%emt 0:00:02]} 4. Qc2 {[%emt 0:00:01]} d5
{[%emt 0:00:03]} 5. cxd5 {[%emt 0:00:02]} exd5 {[%emt 0:00:05]} 6. Bg5 {
[%emt 0:00:02]} O-O {[%emt 0:00:26]} 7. e3 {[%emt 0:00:02]} Be6 {[%emt 0:01:02]
} 8. Bd3 {[%emt 0:00:07]} h6 {[%emt 0:00:08]} 9. Bh4 {[%emt 0:00:02]} Nbd7 {
[%emt 0:00:36]} 10. Nf3 {[%emt 0:00:08]} c5 {[%emt 0:00:03]} 11. a3 {[%emt 0:
00:01]} Ba5 {[%emt 0:00:25]} 12. dxc5 {[%emt 0:00:43]} Nxc5 {[%emt 0:00:29]}
13. Bh7+ {[%emt 0:02:56]} Kh8 {[%emt 0:01:36]} 14. b4 {[%emt 0:00:01]} g5 {
[%emt 0:02:06]} 15. Nxg5 {[%emt 0:00:01]} hxg5 {[%emt 0:01:27]} 16. Bxg5 {
[%emt 0:00:01]} d4 {[%emt 0:00:21]} 17. Rd1 {[%emt 0:04:18]} d3 {[%emt 0:02:34]
} 18. Rxd3 {[%emt 0:00:02]} Nxd3+ {[%emt 0:00:26]} 19. Bxd3 {[%emt 0:00:02]}
Rg8 {[%emt 0:01:32]} 20. h4 {[%emt 0:00:11]} Bc7 {[%emt 0:02:24]} 21. Ne4 {
[%emt 0:00:59]} Be5 {[%emt 0:00:09]} 22. Qe2 {[%emt 0:02:04]} Bg4 {[%emt 0:00:
58]} 23. f3 {[%emt 0:01:43]} Nxe4 {[%emt 0:00:03]} 24. Bxd8 {[%emt 0:01:00]}
Bc3+ {[%emt 0:00:03]} 25. Kd1 {[%emt 0:00:06]} Rgxd8 {[%emt 0:00:40]} 26. fxg4
{[%emt 0:01:38]} Rxd3+ {[%emt 0:00:28]} 27. Qxd3 {[%emt 0:00:01]} Nf2+ {
[%emt 0:00:01]} 28. Kc2 {[%emt 0:00:02]} Nxd3 {[%emt 0:00:02]} 29. Kxc3 {
[%emt 0:00:05]} Ne5 {[%emt 0:00:18]} 30. g5 {[%emt 0:00:01]} Rd8 {[%emt 0:00:
02]} 31. e4 {[%emt 0:01:52]} Rd3+ {[%emt 0:00:03]} 32. Kc2 {[%emt 0:00:20]}
Rxa3 {[%emt 0:00:04]} 33. Rf1 {[%emt 0:00:09]} Kg8 {[%emt 0:00:16]} 34. Rf5 {
[%emt 0:00:26]} Nc6 {[%emt 0:00:02]} 35. Kb2 {[%emt 0:00:22]} Re3 {[%emt 0:00:
35]} 36. b5 {[%emt 0:00:03]} Nd4 {[%emt 0:00:01]} 37. Re5 {[%emt 0:00:12]} Rb3+
{[%emt 0:00:03]} 38. Kc1 {[%emt 0:00:05]} Rxb5 {[%emt 0:00:04]} 39. Re8+ {
[%emt 0:00:01]} Kg7 {[%emt 0:00:02]} 40. Kd2 {[%emt 0:00:01]} Ne6 {[%emt 0:00:
05]} 41. Ra8 {[%emt 0:00:06]} a5 {[%emt 0:00:01]} 42. Ke2 {[%emt 0:00:05]} b6 {
[%emt 0:00:03]} 43. Kf3 {[%emt 0:00:02]} Rb4 {[%emt 0:00:03]} 44. Ra7 {[%emt 0:
00:18]} a4 {[%emt 0:00:05]} 45. g3 {[%emt 0:00:05]} b5 {[%emt 0:00:05]} 46. e5
{[%emt 0:00:01]} Rc4 {[%emt 0:00:08]} 47. Ra5 {[%emt 0:00:14]} Nd4+ {[%emt 0:
00:19]} 48. Ke3 {[%emt 0:00:17]} a3 {[%emt 0:00:16]} 49. Kd3 {[%emt 0:00:13]}
Ra4 {[%emt 0:00:25]} 50. Rxa4 {[%emt 0:00:01]} bxa4 {[%emt 0:00:01]} 51. Kc3 {
[%emt 0:00:01]} Ne2+ {[%emt 0:00:20]} 52. Kc2 {[%emt 0:00:01]} Nxg3 {[%emt 0:
00:06]} 53. Kb1 {[%emt 0:00:02]} Kg6 {[%emt 0:00:04]} 54. Ka2 {[%emt 0:00:01]}
Nf5 {[%emt 0:00:03]} 0-1

[Event "European Rapid Championship 2021"]
[Site "Katowice"]
[Date "2021.12.18"]
[Round "5.18"]
[White "Walter, Szymon"]
[Black "Gerasimenyuk, Mikhail"]
[Result "1/2-1/2"]
[ECO "B01"]
[WhiteElo "2203"]
[BlackElo "1984"]
[Annotator "NA"]
[PlyCount "47"]
[EventDate "2021.12.18"]
[EventType "swiss"]
[EventCountry "POL"]
[SourceTitle "playchess.com"]
[Source "ChessBase"]
[SourceQuality "1"]
[TimeControl "900+10"]

1. e4 {[%emt 0:00:03]} d5 {[%emt 0:00:07]} 2. exd5 {[%emt 0:00:08]} Qxd5 {
[%emt 0:00:02]} 3. Nc3 {[%emt 0:00:04]} Qa5 {[%emt 0:00:03]} 4. d4 {[%emt 0:00:
14]} Nf6 {[%emt 0:00:04]} 5. Nf3 {[%emt 0:00:07]} Bg4 {[%emt 0:00:08]} 6. h3 {
[%emt 0:00:33]} Bf5 {[%emt 0:00:13]} 7. Ne5 {[%emt 0:00:33]} c6 {[%emt 0:00:18]
} 8. g4 {[%emt 0:04:30]} Bg6 {[%emt 0:00:26]} 9. h4 {[%emt 0:00:16]} Nbd7 {
[%emt 0:02:47]} 10. Nc4 {[%emt 0:00:49]} Qc7 {[%emt 0:00:01]} 11. h5 {[%emt 0:
00:05]} Be4 {[%emt 0:00:03]} 12. Nxe4 {[%emt 0:00:16]} Nxe4 {[%emt 0:00:03]}
13. Qf3 {[%emt 0:00:18]} Nd6 {[%emt 0:00:40]} 14. Bf4 {[%emt 0:00:15]} Nb6 {
[%emt 0:01:14]} 15. Ne3 {[%emt 0:00:47]} e6 {[%emt 0:00:59]} 16. c4 {[%emt 0:
00:24]} Nd7 {[%emt 0:00:35]} 17. O-O-O {[%emt 0:00:27]} Qa5 {[%emt 0:01:14]}
18. Kb1 {[%emt 0:00:07]} Be7 {[%emt 0:01:22]} 19. Qg3 {[%emt 0:01:16]} Ne4 {
[%emt 0:00:35]} 20. Qg2 {[%emt 0:00:04]} Nd2+ {[%emt 0:00:14]} 21. Ka1 {
[%emt 0:01:13]} Nb3+ {[%emt 0:00:10]} 22. Kb1 {[%emt 0:00:03]} Nd2+ {[%emt 0:
00:04]} 23. Ka1 {[%emt 0:00:32]} Nb3+ {[%emt 0:00:04]} 24. Kb1 1/2-1/2

[Event "European Rapid Championship 2021"]
[Site "Katowice"]
[Date "2021.12.18"]
[Round "5.19"]
[White "Budrewicz, Krzysztof"]
[Black "Malek, Jan"]
[Result "1-0"]
[ECO "D24"]
[WhiteElo "2281"]
[BlackElo "2029"]
[Annotator "NA"]
[PlyCount "75"]
[EventDate "2021.12.18"]
[EventType "swiss"]
[EventCountry "POL"]
[SourceTitle "playchess.com"]
[Source "ChessBase"]
[SourceQuality "1"]
[TimeControl "900+10"]

1. d4 {[%emt 0:00:03]} d5 {[%emt 0:00:00]} 2. c4 {[%emt 0:00:03]} dxc4 {
[%emt 0:00:02]} 3. Nf3 {[%emt 0:00:03]} Nf6 {[%emt 0:00:01]} 4. Nc3 {[%emt 0:
00:17]} a6 {[%emt 0:00:04]} 5. e4 {[%emt 0:00:17]} b5 {[%emt 0:00:02]} 6. e5 {
[%emt 0:00:03]} Nd5 {[%emt 0:00:01]} 7. a4 {[%emt 0:00:06]} Bb7 {[%emt 0:02:08]
} 8. e6 {[%emt 0:00:35]} f6 {[%emt 0:01:31]} 9. Ne4 {[%emt 0:00:36]} Ne3 {
[%emt 0:00:59]} 10. Bxe3 {[%emt 0:01:27]} Bxe4 {[%emt 0:00:02]} 11. axb5 {
[%emt 0:00:07]} axb5 {[%emt 0:00:16]} 12. Rxa8 {[%emt 0:00:17]} Bxa8 {[%emt 0:
00:03]} 13. b3 {[%emt 0:00:01]} Bd5 {[%emt 0:04:06]} 14. bxc4 {[%emt 0:00:33]}
bxc4 {[%emt 0:00:05]} 15. Qa4+ {[%emt 0:00:17]} c6 {[%emt 0:00:02]} 16. Bxc4 {
[%emt 0:00:39]} Bxc4 {[%emt 0:01:12]} 17. Qxc4 {[%emt 0:00:02]} Qa5+ {[%emt 0:
00:00]} 18. Ke2 {[%emt 0:00:11]} Qa6 {[%emt 0:00:31]} 19. Qxa6 {[%emt 0:00:13]}
Nxa6 {[%emt 0:00:02]} 20. Ra1 {[%emt 0:00:04]} Nc7 {[%emt 0:00:01]} 21. d5 {
[%emt 0:00:30]} cxd5 {[%emt 0:00:07]} 22. Nd4 {[%emt 0:00:02]} g5 {[%emt 0:00:
01]} 23. Rb1 {[%emt 0:00:22]} Nxe6 {[%emt 0:00:09]} 24. Nxe6 {[%emt 0:00:03]}
Kf7 {[%emt 0:00:02]} 25. Rb6 {[%emt 0:00:14]} Bg7 {[%emt 0:00:10]} 26. g4 {
[%emt 0:00:14]} h5 {[%emt 0:00:05]} 27. h3 {[%emt 0:00:04]} hxg4 {[%emt 0:00:
02]} 28. hxg4 {[%emt 0:00:01]} Ra8 {[%emt 0:00:31]} 29. Nxg7 {[%emt 0:01:10]}
Kxg7 {[%emt 0:00:04]} 30. Rb7 {[%emt 0:00:00]} Ra4 {[%emt 0:01:49]} 31. Rxe7+ {
[%emt 0:00:30]} Kf8 {[%emt 0:00:38]} 32. Bc5 {[%emt 0:00:02]} Rc4 {[%emt 0:00:
02]} 33. Rc7+ {[%emt 0:00:10]} Ke8 {[%emt 0:00:08]} 34. Kf3 {[%emt 0:02:10]}
Kd8 {[%emt 0:01:12]} 35. Rc6 {[%emt 0:00:09]} Kd7 {[%emt 0:01:49]} 36. Rd6+ {
[%emt 0:00:12]} Ke7 {[%emt 0:01:30]} 37. Rxd5+ {[%emt 0:00:04]} Ke6 {[%emt 0:
00:01]} 38. Rf5 {[%emt 0:00:01]} 1-0